fUSD/lending_fUSD_20240919
["ID","MTS","AMOUNT","RATE_DAILY","PERIOD"]
[338500218,1726707035182,-500.0,0.0001452,2]
[338500219,1726707035192,-500.0,0.0001452,2]
[338500220,1726707035201,-2394.82,0.0001452,2]
[338500221,1726707035211,-1364.1,0.0001452,2]
[338500222,1726707035220,-2084.74,0.0001452,2]
[338500223,1726707035229,-500.0,0.0001452,2]
[338500224,1726707035239,-500.0,0.0001452,2]
[338500225,1726707035248,-500.0,0.0001452,2]
[338500226,1726707035258,-515.20717572,0.0001452,2]
[338500227,1726707035267,-697.76,0.0001452,2]
[338500228,1726707035277,-500.0,0.0001452,2]
[338500229,1726707035286,-500.0,0.0001452,2]
[338500230,1726707035295,-500.0,0.0001452,2]
[338500231,1726707035304,-500.0,0.0001452,2]
[338500232,1726707035313,-1061.76,0.0001452,2]
[338500233,1726707035323,-531.23,0.0001452,2]
[338500234,1726707035332,-1367.07,0.0001452,2]
[338500235,1726707035341,-720.3,0.0001452,2]
[338500236,1726707035350,-500.0,0.0001452,2]
[338500237,1726707035359,-500.0,0.0001452,2]
[338500238,1726707035369,-602.84,0.0001452,2]
[338500239,1726707035378,-500.0,0.0001452,2]
[338500240,1726707035389,-1065.16,0.0001452,2]
[338500241,1726707035400,-763.76,0.0001452,2]
[338500242,1726707035410,-705.74,0.0001452,2]
[338500243,1726707035419,-1111.9,0.0001452,2]
[338500244,1726707035430,-1013.82,0.0001452,2]
[338500245,1726707035440,-2428.67,0.0001452,2]
[338500246,1726707035450,-500.0,0.0001452,2]
[338500247,1726707035460,-500.0,0.0001452,2]
[338500248,1726707035469,-500.0,0.0001452,2]
[338500249,1726707035480,-272.29951546,0.0001452,2]
[338500250,1726707035491,-500.0,0.0001452,2]
[338500251,1726707035500,-1470.16,0.0001452,2]
[338500252,1726707035510,-500.0,0.0001452,2]
[338500253,1726707035519,-939.09,0.0001452,2]
[338500254,1726707035529,-1024.46,0.0001452,2]
[338500255,1726707035538,-1895.15,0.0001452,2]
[338500256,1726707035547,-1219.31,0.0001452,2]
[338500257,1726707035558,-867.12,0.0001452,2]
[338500258,1726707035567,-500.0,0.0001452,2]
[338500259,1726707035577,-632.99,0.0001452,2]
[338500260,1726707035586,-500.0,0.0001452,2]
[338500261,1726707035595,-500.0,0.0001452,2]
[338500262,1726707035605,-1736.59,0.0001452,2]
[338500263,1726707035614,-561.07,0.0001452,2]
[338500264,1726707035624,-927.86,0.0001452,2]
[338500265,1726707035634,-902.65,0.0001452,2]
[338500266,1726707035643,-753.29,0.0001452,2]
[338500267,1726707035655,-500.0,0.0001452,2]
[338500268,1726707035664,-2856.25,0.0001452,2]
[338500269,1726707035673,-500.0,0.0001452,2]
[338500270,1726707035683,-1090.3,0.0001452,2]
[338500271,1726707035693,-500.0,0.0001452,2]
[338500272,1726707035702,-577.13,0.0001452,2]
[338500273,1726707035711,-927.46,0.0001452,2]
[338500274,1726707035720,-500.0,0.0001452,2]
[338500275,1726707035730,-500.0,0.0001452,2]
[338500276,1726707035739,-500.0,0.0001452,2]
[338500277,1726707035749,-500.0,0.0001452,2]
[338500278,1726707035758,-2265.3,0.0001452,2]
[338500279,1726707035768,-500.0,0.0001452,2]
[338500280,1726707035777,-500.0,0.0001452,2]
[338500281,1726707035786,-500.0,0.0001452,2]
[338500282,1726707035795,-1645.56,0.0001452,2]
[338500283,1726707035805,-500.0,0.0001452,2]
[338500284,1726707035814,-500.0,0.0001452,2]
[338500285,1726707035824,-1149.01,0.0001452,2]
[338500286,1726707035833,-500.0,0.0001452,2]
[338500287,1726707035842,-718.53,0.0001452,2]
[338500288,1726707035853,-324.26990785,0.0001452,2]
[338500289,1726707035862,-500.0,0.0001452,2]
[338500290,1726707035871,-799.22,0.0001452,2]
[338500291,1726707035881,-500.0,0.0001452,2]
[338500292,1726707035890,-1460.09,0.0001452,2]
[338500293,1726707035901,-767.25,0.0001452,2]
[338500294,1726707035913,-500.0,0.0001452,2]
[338500295,1726707035922,-1466.63,0.0001452,2]
[338500296,1726707035931,-2182.65,0.0001452,2]
[338500297,1726707035940,-1282.47,0.0001452,2]
[338500298,1726707035949,-500.0,0.0001452,2]
[338500299,1726707035958,-624.98,0.0001452,2]
[338500300,1726707035967,-1208.27,0.0001452,2]
[338500301,1726707035977,-500.0,0.0001452,2]
[338500302,1726707035986,-616.74,0.0001452,2]
[338500303,1726707035996,-1213.78,0.0001452,2]
[338500304,1726707036006,-500.0,0.0001452,2]
[338500305,1726707036016,-500.0,0.0001452,2]
[338500306,1726707036026,-1720.05,0.0001452,2]
[338500307,1726707036036,-399.73894852,0.0001452,2]
[338500308,1726707036047,-500.0,0.0001452,2]
[338500309,1726707036056,-500.0,0.0001452,2]
[338500310,1726707036066,-500.0,0.0001452,2]
[338500311,1726707036075,-919.34,0.0001452,2]
[338500312,1726707036085,-500.0,0.0001452,2]
[338500313,1726707036094,-1478.96,0.0001452,2]
[338500314,1726707036104,-500.0,0.0001452,2]
[338500315,1726707036114,-500.0,0.0001452,2]
[338500316,1726707036123,-500.0,0.0001452,2]
[338500317,1726707036133,-805.21,0.0001452,2]
[338500318,1726707036142,-500.0,0.0001452,2]
[338500319,1726707036154,-562.79,0.0001452,2]
[338500320,1726707036165,-500.0,0.0001452,2]
[338500321,1726707036175,-500.0,0.0001452,2]
[338500322,1726707036184,-500.0,0.0001452,2]
[338500323,1726707036195,-662.12,0.0001452,2]
[338500324,1726707036204,-500.0,0.0001452,2]
[338500325,1726707036213,-1577.94,0.0001452,2]
[338500326,1726707036223,-500.0,0.0001452,2]
[338500327,1726707036235,-500.0,0.0001452,2]
[338500328,1726707036246,-1301.86,0.0001452,2]
[338500329,1726707036257,-500.0,0.0001452,2]
[338500330,1726707036266,-500.0,0.0001452,2]
[338500331,1726707036276,-500.0,0.0001452,2]
[338500332,1726707036285,-500.0,0.0001452,2]
[338500333,1726707036295,-1731.07,0.0001452,2]
[338500334,1726707036303,-570.77874528,0.0001452,2]
[338500335,1726707036312,-500.0,0.0001452,2]
[338500336,1726707036322,-1199.87,0.0001452,2]
[338500337,1726707036331,-2373.87,0.0001452,2]
[338500338,1726707036340,-1416.97,0.0001452,2]
[338500339,1726707036349,-1099.19,0.0001452,2]
[338500340,1726707036358,-500.0,0.0001452,2]
[338500341,1726707036368,-1455.38,0.0001452,2]
[338500342,1726707036377,-288.43734532,0.0001452,2]
[338500343,1726707036387,-500.0,0.0001452,2]
[338500344,1726707036396,-500.0,0.0001452,2]
[338500345,1726707036406,-500.0,0.0001452,2]
[338500346,1726707036415,-913.29,0.0001452,2]
[338500347,1726707036425,-257.50116507,0.0001452,2]
[338500348,1726707036434,-500.0,0.0001452,2]
[338500349,1726707036443,-500.0,0.0001452,2]
[338500350,1726707036452,-879.23,0.0001452,2]
[338500351,1726707036461,-509.64,0.0001452,2]
[338500352,1726707036471,-500.0,0.0001452,2]
[338500353,1726707036481,-2389.8,0.0001452,2]
[338500354,1726707036490,-500.0,0.0001452,2]
[338500355,1726707036499,-838.94,0.0001452,2]
[338500356,1726707036508,-660.59,0.0001452,2]
[338500357,1726707036517,-806.6,0.0001452,2]
[338500358,1726707036526,-1751.93,0.0001452,2]
[338500359,1726707036535,-3626.67,0.0001452,2]
[338500360,1726707036545,-500.0,0.0001452,2]
[338500361,1726707036554,-1345.39,0.0001452,2]
[338500362,1726707036563,-741.94,0.0001452,2]
[338500363,1726707036574,-500.0,0.0001452,2]
[338500364,1726707036584,-1890.36,0.0001452,2]
[338500365,1726707036594,-1095.9,0.0001452,2]
[338500366,1726707036603,-846.88,0.0001452,2]
[338500367,1726707036612,-500.0,0.0001452,2]
[338500368,1726707036622,-500.0,0.0001452,2]
[338500369,1726707036631,-500.0,0.0001452,2]
[338500370,1726707036641,-500.0,0.0001452,2]
[338500371,1726707036652,-4150.44,0.0001452,2]
[338500372,1726707036661,-500.0,0.0001452,2]
[338500373,1726707036670,-1984.99,0.0001452,2]
[338500374,1726707036681,-1896.65,0.0001452,2]
[338500375,1726707036690,-927.86,0.0001452,2]
[338500376,1726707036700,-500.0,0.0001452,2]
[338500377,1726707036710,-500.0,0.0001452,2]
[338500378,1726707036719,-500.0,0.0001452,2]
[338500379,1726707036729,-1994.19,0.0001452,2]
[338500380,1726707036738,-809.31,0.0001452,2]
[338500381,1726707036748,-500.0,0.0001452,2]
[338500382,1726707036758,-603.68,0.0001452,2]
[338500383,1726707036768,-500.0,0.0001452,2]
[338500384,1726707036778,-500.0,0.0001452,2]
[338500385,1726707036788,-2063.19,0.0001452,2]
[338500386,1726707036798,-500.0,0.0001452,2]
[338500387,1726707037074,-4814.2,0.0001452,2]
[338500388,1726707037084,-1874.11,0.0001452,2]
[338500389,1726707037093,-500.0,0.0001452,2]
[338500390,1726707037102,-500.0,0.0001452,2]
[338500391,1726707037112,-696.21,0.0001452,2]
[338500392,1726707037121,-500.0,0.0001452,2]
[338500393,1726707037130,-500.0,0.0001452,2]
[338500394,1726707037139,-864.28,0.0001452,2]
[338500395,1726707037149,-468.19768474,0.0001452,2]
[338500396,1726707037162,-4563.63,0.0001452,2]
[338500397,1726707037172,-500.0,0.0001452,2]
[338500398,1726707037181,-409.30372725,0.0001452,2]
[338500399,1726707037191,-1796.32,0.0001452,2]
[338500400,1726707037200,-500.0,0.0001452,2]
[338500401,1726707037209,-4131.38,0.0001452,2]
[338500402,1726707037219,-1508.81,0.0001452,2]
[338500403,1726707037228,-500.0,0.0001452,2]
[338500404,1726707037237,-500.0,0.0001452,2]
[338500405,1726707037248,-3037.14,0.0001452,2]
[338500406,1726707037257,-1133.43,0.0001452,2]
[338500407,1726707037267,-500.0,0.0001452,2]
[338500408,1726707037277,-500.0,0.0001452,2]
[338500409,1726707037286,-500.0,0.0001452,2]
[338500410,1726707037296,-807.55,0.0001452,2]
[338500411,1726707037306,-500.0,0.0001452,2]
[338500412,1726707037315,-500.0,0.0001452,2]
[338500413,1726707037324,-1461.29,0.0001452,2]
[338500414,1726707037334,-828.17,0.0001452,2]
[338500415,1726707037343,-1206.27,0.0001452,2]
[338500416,1726707037352,-500.0,0.0001452,2]
[338500417,1726707037361,-1716.19,0.0001452,2]
[338500418,1726707037370,-500.0,0.0001452,2]
[338500419,1726707037380,-2050.93,0.0001452,2]
[338500420,1726707037389,-500.0,0.0001452,2]
[338500421,1726707037399,-500.0,0.0001452,2]
[338500422,1726707037408,-534.57084063,0.0001452,2]
[338500423,1726707037417,-1446.98,0.0001452,2]
[338500424,1726707037426,-4462.63,0.0001452,2]
[338500425,1726707037435,-202.84707958,0.0001452,2]
[338500426,1726707037445,-600.04,0.0001452,2]
[338500427,1726707037454,-946.81,0.0001452,2]
[338500428,1726707037464,-500.0,0.0001452,2]
[338500429,1726707037474,-500.0,0.0001452,2]
[338500430,1726707037483,-1844.38,0.0001452,2]
[338500431,1726707037493,-500.0,0.0001452,2]
[338500432,1726707037503,-500.0,0.0001452,2]
[338500433,1726707037513,-500.0,0.0001452,2]
[338500434,1726707037523,-500.0,0.0001452,2]
[338500435,1726707037533,-500.0,0.0001452,2]
[338500436,1726707037543,-500.0,0.0001452,2]
[338500437,1726707037553,-3296.32,0.0001452,2]
[338500438,1726707037562,-500.0,0.0001452,2]
[338500439,1726707037572,-1742.22,0.0001452,2]
[338500440,1726707037582,-500.0,0.0001452,2]
[338500441,1726707037592,-500.0,0.0001452,2]
[338500442,1726707037602,-1227.12,0.0001452,2]
[338500443,1726707037611,-716.23,0.0001452,2]
[338500444,1726707037621,-500.0,0.0001452,2]
[338500445,1726707037631,-500.0,0.0001452,2]
[338500446,1726707037640,-1250.55,0.0001452,2]
[338500447,1726707037652,-500.0,0.0001452,2]
[338500448,1726707037662,-1526.19,0.0001452,2]
[338500449,1726707037672,-500.0,0.0001452,2]
[338500450,1726707037682,-601.6,0.0001452,2]
[338500451,1726707037691,-151.0,0.0001452,2]
[338500452,1726707037701,-1200.64,0.0001452,2]
[338500453,1726707037710,-907.74,0.0001452,2]
[338500454,1726707037721,-500.0,0.0001452,2]
[338500455,1726707037730,-928.44,0.0001452,2]
[338500456,1726707037740,-2582.16,0.0001452,2]
[338500457,1726707037750,-500.0,0.0001452,2]
[338500458,1726707037759,-1068.49,0.0001452,2]
[338500459,1726707037768,-151.0,0.0001452,2]
[338500460,1726707037778,-500.0,0.0001452,2]
[338500461,1726707037788,-500.0,0.0001452,2]
[338500462,1726707037797,-3230.95,0.0001452,2]
[338500463,1726707037807,-676.0,0.0001452,2]
[338500464,1726707037816,-500.0,0.0001452,2]
[338500465,1726707037827,-500.0,0.0001452,2]
[338500466,1726707037837,-2192.52,0.0001452,2]
[338500467,1726707037846,-500.0,0.0001452,2]
[338500468,1726707037856,-500.0,0.0001452,2]
[338500469,1726707037865,-1620.92,0.0001452,2]
[338500470,1726707037874,-20000.0,0.0001452,2]
[338500471,1726707037882,-500.0,0.0001452,2]
[338500472,1726707037890,-500.0,0.0001452,2]
[338500473,1726707037900,-500.0,0.0001452,2]
[338500474,1726707037908,-1894.41,0.0001452,2]
[338500475,1726707037917,-500.0,0.0001452,2]
[338500476,1726707037927,-918.52,0.0001452,2]
[338500477,1726707037936,-500.0,0.0001452,2]
[338500478,1726707037945,-4453.14,0.0001452,2]
[338500479,1726707037954,-604.75,0.0001452,2]
[338500480,1726707037963,-1454.57,0.0001452,2]
[338500481,1726707037971,-1946.08,0.0001452,2]
[338500482,1726707037980,-2874.52,0.0001452,2]
[338500484,1726707037989,-500.0,0.0001452,2]
[338500485,1726707037997,-797.74,0.0001452,2]
[338500486,1726707038006,-1496.82,0.0001452,2]
[338500487,1726707038015,-500.0,0.0001452,2]
[338500488,1726707038024,-534.64445244,0.0001452,2]
[338500489,1726707038033,-500.0,0.0001452,2]
[338500490,1726707038043,-2882.22,0.0001452,2]
[338500491,1726707038052,-780.43,0.0001452,2]
[338500492,1726707038061,-1810.28,0.0001452,2]
[338500493,1726707038071,-500.0,0.0001452,2]
[338500494,1726707038080,-305.15717064,0.0001452,2]
[338500495,1726707038090,-887.83,0.0001452,2]
[338500496,1726707038099,-809.5,0.0001452,2]
[338500497,1726707038109,-506.42,0.0001452,2]
[338500498,1726707038118,-500.0,0.0001452,2]
[338500499,1726707038128,-3034.06,0.0001452,2]
[338500500,1726707038137,-879.8,0.0001452,2]
[338500501,1726707038149,-742.58,0.0001452,2]
[338500502,1726707038159,-3180.21,0.0001452,2]
[338500503,1726707038168,-500.0,0.0001452,2]
[338500504,1726707038178,-1379.38,0.0001452,2]
[338500505,1726707038187,-580.54,0.0001452,2]
[338500506,1726707038197,-500.0,0.0001452,2]
[338500507,1726707038206,-500.0,0.0001452,2]
[338500508,1726707038215,-577.09,0.0001452,2]
[338500509,1726707038225,-500.0,0.0001452,2]
[338500510,1726707038235,-500.0,0.0001452,2]
[338500511,1726707038244,-500.0,0.0001452,2]
[338500512,1726707038254,-500.0,0.0001452,2]
[338500513,1726707038263,-653.68,0.0001452,2]
[338500514,1726707038273,-500.0,0.0001452,2]
[338500515,1726707038282,-773.55,0.0001452,2]
[338500516,1726707038292,-3354.58,0.0001452,2]
[338500517,1726707038301,-2268.38,0.0001452,2]
[338500518,1726707038311,-3156.94,0.0001452,2]
[338500519,1726707038321,-6924.03,0.0001452,2]
[338500520,1726707038330,-500.0,0.0001452,2]
[338500521,1726707038339,-500.0,0.0001452,2]
[338500522,1726707038349,-619.14,0.0001452,2]
[338500523,1726707038358,-500.0,0.0001452,2]
[338500524,1726707038367,-500.0,0.0001452,2]
[338500525,1726707038377,-1884.36,0.0001452,2]
[338500526,1726707038386,-624.45,0.0001452,2]
[338500527,1726707038396,-1057.91,0.0001452,2]
[338500528,1726707038407,-500.0,0.0001452,2]
[338500529,1726707038416,-500.0,0.0001452,2]
[338500530,1726707038425,-697.35,0.0001452,2]
[338500531,1726707038435,-2801.19,0.0001452,2]
[338500532,1726707038444,-500.0,0.0001452,2]
[338500533,1726707038453,-229.6887108,0.0001452,2]
[338500534,1726707038463,-695.69,0.0001452,2]
[338500535,1726707038473,-500.0,0.0001452,2]
[338500536,1726707038482,-2450.17,0.0001452,2]
[338500537,1726707038492,-500.0,0.0001452,2]
[338500538,1726707038501,-500.0,0.0001452,2]
[338500539,1726707038511,-747.97,0.0001452,2]
[338500540,1726707038520,-500.0,0.0001452,2]
[338500541,1726707038530,-1281.3,0.0001452,2]
[338500542,1726707038540,-500.0,0.0001452,2]
[338500543,1726707038549,-2707.23,0.0001452,2]
[338500544,1726707038559,-3706.7,0.0001452,2]
[338500545,1726707038569,-3534.38,0.0001452,2]
[338500547,1726707038578,-974.83,0.0001452,2]
[338500549,1726707038587,-500.0,0.0001452,2]
[338500551,1726707038596,-500.0,0.0001452,2]
[338500552,1726707038606,-500.0,0.0001452,2]
[338500553,1726707038615,-500.0,0.0001452,2]
[338500554,1726707038624,-1645.96,0.0001452,2]
[338500555,1726707038634,-500.0,0.0001452,2]
[338500556,1726707038644,-500.0,0.0001452,2]
[338500557,1726707038662,-500.0,0.0001452,2]
[338500558,1726707038672,-500.0,0.0001452,2]
[338500559,1726707038682,-1878.28,0.0001452,2]
[338500560,1726707038691,-500.0,0.0001452,2]
[338500561,1726707038701,-4660.33,0.0001452,2]
[338500562,1726707038710,-1998.18,0.0001452,2]
[338500563,1726707038719,-500.0,0.0001452,2]
[338500564,1726707038729,-1070.62,0.0001452,2]
[338500565,1726707038739,-500.0,0.0001452,2]
[338500566,1726707038748,-565.26,0.0001452,2]
[338500567,1726707038758,-500.0,0.0001452,2]
[338500568,1726707038767,-1641.75,0.0001452,2]
[338500569,1726707038776,-500.0,0.0001452,2]
[338500570,1726707038786,-760.53,0.0001452,2]
[338500571,1726707038797,-500.0,0.0001452,2]
[338500572,1726707038806,-500.0,0.0001452,2]
[338500573,1726707038816,-2435.25,0.0001452,2]
[338500574,1726707038825,-500.0,0.0001452,2]
[338500575,1726707038835,-500.0,0.0001452,2]
[338500576,1726707038844,-4139.71,0.0001452,2]
[338500577,1726707038854,-2355.65,0.0001452,2]
[338500578,1726707038863,-500.0,0.0001452,2]
[338500579,1726707038873,-1033.24,0.0001452,2]
[338500580,1726707038883,-500.0,0.0001452,2]
[338500581,1726707038892,-500.0,0.0001452,2]
[338500582,1726707038902,-500.0,0.0001452,2]
[338500583,1726707038911,-1605.51,0.0001452,2]
[338500584,1726707038921,-3467.5,0.0001452,2]
[338500585,1726707038930,-500.0,0.0001452,2]
[338500586,1726707038939,-500.0,0.0001452,2]
[338500587,1726707038949,-500.0,0.0001452,2]
[338500588,1726707038959,-576.93,0.0001452,2]
[338500589,1726707038968,-572.36,0.0001452,2]
[338500590,1726707038977,-500.0,0.0001452,2]
[338500591,1726707038986,-3169.37,0.0001452,2]
[338500592,1726707038996,-500.0,0.0001452,2]
[338500593,1726707039005,-1027.62,0.0001452,2]
[338500594,1726707039015,-2589.81,0.0001452,2]
[338500595,1726707039024,-500.0,0.0001452,2]
[338500596,1726707039033,-500.0,0.0001452,2]
[338500597,1726707039043,-591.02,0.0001452,2]
[338500598,1726707039052,-668.29,0.0001452,2]
[338500599,1726707039062,-5369.48,0.0001452,2]
[338500600,1726707039071,-849.65,0.0001452,2]
[338500601,1726707039080,-2772.23,0.0001452,2]
[338500602,1726707039090,-2470.83,0.0001452,2]
[338500603,1726707039100,-500.0,0.0001452,2]
[338500604,1726707039110,-639.94,0.0001452,2]
[338500605,1726707039119,-727.23,0.0001452,2]
[338500606,1726707039129,-500.0,0.0001452,2]
[338500607,1726707039138,-500.0,0.0001452,2]
[338500608,1726707039153,-500.0,0.0001452,2]
[338500609,1726707039163,-500.0,0.0001452,2]
[338500610,1726707039172,-4854.59,0.0001452,2]
[338500611,1726707039182,-2067.26,0.0001452,2]
[338500612,1726707039191,-500.0,0.0001452,2]
[338500613,1726707039201,-582.24797186,0.0001452,2]
[338500614,1726707039210,-1327.4,0.0001452,2]
[338500615,1726707039219,-500.0,0.0001452,2]
[338500616,1726707039229,-1957.95,0.0001452,2]
[338500617,1726707039238,-537.16,0.0001452,2]
[338500618,1726707039247,-1347.25,0.0001452,2]
[338500619,1726707039256,-500.0,0.0001452,2]
[338500620,1726707039266,-2320.13,0.0001452,2]
[338500621,1726707039275,-500.0,0.0001452,2]
[338500622,1726707039285,-500.0,0.0001452,2]
[338500623,1726707039294,-1924.24,0.0001452,2]
[338500624,1726707039303,-500.0,0.0001452,2]
[338500625,1726707039313,-500.0,0.0001452,2]
[338500626,1726707039322,-500.0,0.0001452,2]
[338500627,1726707039332,-500.0,0.0001452,2]
[338500628,1726707039341,-1358.89,0.0001452,2]
[338500629,1726707039350,-423.95266967,0.0001452,2]
[338500630,1726707039359,-500.0,0.0001452,2]
[338500631,1726707039369,-1823.73,0.0001452,2]
[338500632,1726707039379,-500.0,0.0001452,2]
[338500633,1726707039489,-1187.29,0.0001452,2]
[338500634,1726707039498,-1334.53,0.0001452,2]
[338500635,1726707039507,-500.0,0.0001452,2]
[338500636,1726707039516,-1499.39,0.0001452,2]
[338500637,1726707039526,-643.64,0.0001452,2]
[338500638,1726707039535,-1490.67,0.0001452,2]
[338500639,1726707039545,-1902.29,0.0001452,2]
[338500640,1726707039554,-3667.38,0.0001452,2]
[338500641,1726707039563,-500.0,0.0001452,2]
[338500642,1726707039572,-500.0,0.0001452,2]
[338500643,1726707039581,-954.77,0.0001452,2]
[338500644,1726707039590,-500.0,0.0001452,2]
[338500645,1726707039600,-500.0,0.0001452,2]
[338500646,1726707039609,-1845.95,0.0001452,2]
[338500647,1726707039618,-1898.17,0.0001452,2]
[338500648,1726707039627,-2938.53,0.0001452,2]
[338500649,1726707039637,-1485.12,0.0001452,2]
[338500650,1726707039646,-636.37549922,0.0001452,2]
[338500651,1726707039656,-500.0,0.0001452,2]
[338500652,1726707039666,-3884.4,0.0001452,2]
[338500653,1726707039675,-500.0,0.0001452,2]
[338500654,1726707039685,-840.46,0.0001452,2]
[338500655,1726707039694,-500.0,0.0001452,2]
[338500656,1726707039704,-500.0,0.0001452,2]
[338500657,1726707039712,-1594.46,0.0001452,2]
[338500658,1726707039722,-705.61,0.0001452,2]
[338500659,1726707039731,-5461.38,0.0001452,2]
[338500660,1726707039740,-500.0,0.0001452,2]
[338500661,1726707039749,-500.0,0.0001452,2]
[338500662,1726707039758,-500.0,0.0001452,2]
[338500663,1726707039767,-500.0,0.0001452,2]
[338500664,1726707039776,-634.31,0.0001452,2]
[338500665,1726707039785,-1071.03,0.0001452,2]
[338500666,1726707039794,-4024.99,0.0001452,2]
[338500667,1726707039803,-822.22,0.0001452,2]
[338500668,1726707039812,-500.0,0.0001452,2]
[338500669,1726707039821,-3488.51,0.0001452,2]
[338500670,1726707039831,-2229.24,0.0001452,2]
[338500671,1726707039840,-500.0,0.0001452,2]
[338500672,1726707039849,-500.0,0.0001452,2]
[338500673,1726707039858,-1038.61,0.0001452,2]
[338500674,1726707039867,-500.0,0.0001452,2]
[338500675,1726707039876,-500.0,0.0001452,2]
[338500676,1726707039885,-151.0,0.0001452,2]
[338500677,1726707039895,-2479.46,0.0001452,2]
[338500678,1726707039907,-500.0,0.0001452,2]
[338500679,1726707039916,-500.0,0.0001452,2]
[338500680,1726707039925,-3331.51,0.0001452,2]
[338500681,1726707039934,-735.65,0.0001452,2]
[338500682,1726707039943,-614.35,0.0001452,2]
[338500683,1726707039952,-500.0,0.0001452,2]
[338500684,1726707039962,-500.0,0.0001452,2]
[338500685,1726707039971,-1106.59,0.0001452,2]
[338500686,1726707039981,-838.71,0.0001452,2]
[338500687,1726707039990,-719.47,0.0001452,2]
[338500688,1726707039999,-596.47,0.0001452,2]
[338500689,1726707040008,-500.0,0.0001452,2]
[338500690,1726707040017,-5257.52,0.0001452,2]
[338500691,1726707040027,-500.0,0.0001452,2]
[338500692,1726707040036,-500.0,0.0001452,2]
[338500694,1726707040045,-500.0,0.0001452,2]
[338500695,1726707040054,-500.0,0.0001452,2]
[338500696,1726707040063,-4230.53,0.0001452,2]
[338500697,1726707040072,-1538.8,0.0001452,2]
[338500698,1726707040081,-764.9,0.0001452,2]
[338500699,1726707040090,-500.0,0.0001452,2]
[338500700,1726707040099,-500.0,0.0001452,2]
[338500701,1726707040108,-1328.96,0.0001452,2]
[338500702,1726707040117,-972.44,0.0001452,2]
[338500703,1726707040126,-500.0,0.0001452,2]
[338500704,1726707040134,-2531.89,0.0001452,2]
[338500705,1726707040144,-1106.11,0.0001452,2]
[338500706,1726707040157,-3093.97,0.0001452,2]
[338500707,1726707040166,-500.0,0.0001452,2]
[338500708,1726707040175,-500.0,0.0001452,2]
[338500709,1726707040184,-547.25,0.0001452,2]
[338500710,1726707040194,-500.0,0.0001452,2]
[338500711,1726707040203,-500.0,0.0001452,2]
[338500712,1726707040212,-500.0,0.0001452,2]
[338500713,1726707040221,-500.0,0.0001452,2]
[338500714,1726707040232,-2538.61,0.0001452,2]
[338500715,1726707040241,-500.0,0.0001452,2]
[338500716,1726707040250,-908.08,0.0001452,2]
[338500717,1726707040259,-151.0,0.0001452,2]
[338500718,1726707040269,-3465.72,0.0001452,2]
[338500719,1726707040278,-2135.65,0.0001452,2]
[338500720,1726707040287,-500.0,0.0001452,2]
[338500721,1726707040297,-1361.48,0.0001452,2]
[338500722,1726707040306,-1102.72,0.0001452,2]